bitfinex/quotes_BTCUSD_20251029
["timestamp","ask_amount","ask_price","bid_price","bid_amount"]
[1761739247062,0.01364333,113330.0,113320.0,0.2131545]
[1761739248519,0.00827333,113330.0,113320.0,0.2131545]
[1761739248717,0.61280367,113340.0,113330.0,0.17647577]
[1761739249030,0.79753646,113340.0,113330.0,0.22705577]
[1761739249641,0.81399646,113340.0,113330.0,0.20422577]
[1761739250305,0.62098801,113340.0,113330.0,0.20422577]
[1761739250505,0.02814626,113340.0,113330.0,0.67250144]
[1761739250663,0.00906701,113340.0,113330.0,0.67250144]
[1761739251080,0.00079442,113340.0,113330.0,0.67250144]
[1761739251301,0.00079442,113340.0,113330.0,0.78884345]
[1761739252407,0.00079442,113340.0,113330.0,0.71405291]
[1761739254119,0.01725442,113340.0,113330.0,0.23074877]
[1761739254330,0.03965442,113340.0,113330.0,0.20299877]
[1761739254551,0.22437978,113340.0,113330.0,0.17647577]
[1761739254756,0.04791958,113340.0,113330.0,0.17647577]
[1761739255173,0.02551958,113340.0,113330.0,0.17647577]
[1761739260098,0.02551958,113340.0,113330.0,0.19277577]
[1761739260555,0.02551958,113340.0,113330.0,0.20422577]
[1761739262648,0.00905958,113340.0,113330.0,0.22705577]
[1761739262836,0.00079442,113340.0,113330.0,0.22705577]
[1761739263071,0.01725442,113340.0,113330.0,0.20422577]
[1761739263282,0.02551958,113340.0,113330.0,0.20422577]
[1761739264374,0.02551958,113340.0,113330.0,0.22705577]
[1761739264527,0.00905958,113340.0,113330.0,0.22705577]
[1761739264731,0.00079442,113340.0,113330.0,0.22705577]
[1761739267157,0.01725442,113340.0,113330.0,0.20422577]
[1761739267277,0.02551958,113340.0,113330.0,0.20422577]
[1761739267474,0.00905958,113340.0,113330.0,0.22862577]
[1761739267684,0.00079442,113340.0,113330.0,0.5992809]
[1761739268670,0.00079442,113340.0,113330.0,0.62580468]
[1761739270854,0.00079442,113340.0,113330.0,0.5992809]
[1761739273757,0.00079442,113340.0,113330.0,0.22862577]
[1761739274162,0.00079442,113340.0,113330.0,0.5992809]
[1761739274763,0.00079442,113340.0,113330.0,0.68909991]
[1761739275556,0.00079442,113340.0,113330.0,0.5992809]
[1761739275747,0.00079442,113340.0,113330.0,0.62580334]
[1761739279417,0.00079442,113340.0,113330.0,0.62560696]
[1761739279806,0.00079442,113340.0,113330.0,1.08588472]
[1761739280018,0.00079442,113340.0,113330.0,1.16959985]
[1761739280223,0.00079442,113340.0,113330.0,1.25941886]
[1761739281218,0.00079442,113340.0,113330.0,1.26541886]
[1761739281424,0.00079442,113340.0,113330.0,1.21788601]
[1761739281917,1e-08,113340.0,113330.0,1.60541886]
[1761739282385,1e-08,113340.0,113330.0,1.55788601]
[1761739283270,1e-08,113340.0,113330.0,1.60527009]
[1761739285669,1e-08,113340.0,113330.0,1.75367009]
[1761739286842,1e-08,113340.0,113330.0,2.13412883]
[1761739287058,1e-08,113340.0,113330.0,1.76367008]
[1761739287681,1e-08,113340.0,113330.0,1.75767008]
[1761739288119,1e-08,113340.0,113330.0,1.76467008]
[1761739288323,1e-08,113340.0,113330.0,1.77467007]
[1761739288465,1e-08,113340.0,113330.0,2.09774474]
[1761739288661,1e-08,113340.0,113330.0,2.16110761]
[1761739288907,1e-08,113340.0,113330.0,1.79064886]
[1761739289110,1e-08,113340.0,113330.0,2.16110761]
[1761739290536,1e-08,113370.0,113360.0,1.31886885]
[1761739290737,1e-08,113370.0,113360.0,1.52155687]
[1761739291837,1e-08,113370.0,113360.0,1.52509123]
[1761739291838,8.526e-05,113370.0,113360.0,1.52509123]
[1761739292456,8.526e-05,113370.0,113360.0,1.52709123]
[1761739292696,8.526e-05,113370.0,113360.0,1.53109123]
[1761739294428,0.34,113420.0,113410.0,0.17633636]
[1761739294603,0.34014487,113420.0,113410.0,0.20393636]
[1761739294767,0.34014487,113420.0,113410.0,0.24462]
[1761739295391,0.36086487,113420.0,113410.0,0.24462]
[1761739295593,0.36086487,113420.0,113410.0,0.22157]
[1761739296344,0.36586487,113420.0,113410.0,0.20393636]
[1761739296748,0.36755662,113420.0,113410.0,0.20393636]
[1761739297491,0.38995662,113420.0,113410.0,0.17633636]
[1761739298095,0.36755662,113420.0,113410.0,0.17633636]
[1761739298311,0.36755662,113420.0,113410.0,0.19160636]
[1761739299258,0.36153569,113420.0,113410.0,0.59719511]
[1761739299705,0.36153569,113420.0,113410.0,0.22673636]
[1761739299851,0.02153569,113420.0,113410.0,0.22673636]
[1761739300051,0.01653569,113420.0,113410.0,0.22673636]
[1761739302165,0.03164569,113420.0,113410.0,0.19086636]
[1761739302571,0.00747662,113420.0,113410.0,0.24056122]
[1761739304212,0.02258662,113420.0,113410.0,0.19016122]
[1761739304415,0.04012662,113420.0,113410.0,0.19016122]
[1761739306444,0.03081252,113420.0,113410.0,0.19016122]
[1761739306779,0.03981556,113420.0,113410.0,0.19016122]
[1761739307800,0.03981556,113420.0,113410.0,0.20543122]
[1761739310833,0.03981556,113420.0,113410.0,0.21737122]
[1761739313520,0.02470556,113420.0,113410.0,0.24056122]
[1761739315372,0.01491765,113420.0,113410.0,0.24056122]
[1761739317892,0.01491765,113420.0,113410.0,0.61101997]
[1761739318274,0.01491765,113420.0,113410.0,0.24056122]
[1761739318541,0.01491765,113420.0,113410.0,0.61101997]
[1761739319124,0.00991765,113420.0,113410.0,0.61101997]
[1761739319584,0.01391765,113420.0,113410.0,0.61101997]
[1761739320498,0.01391765,113420.0,113410.0,0.24056122]
[1761739323930,0.02902765,113420.0,113410.0,0.21737122]
[1761739324140,0.24896694,113420.0,113410.0,0.02650486]
[1761739324385,2.2679429,113420.0,113400.0,0.18793684]
[1761739324603,0.19146129,113410.0,113400.0,0.01157]
[1761739324825,0.19146129,113410.0,113400.0,0.02650601]
[1761739324826,0.5587076,113410.0,113400.0,0.02650601]
[1761739324997,0.5587076,113410.0,113380.0,0.19678784]
[1761739324998,0.17638239,113390.0,113380.0,0.01157]
[1761739325211,0.20586829,113390.0,113380.0,0.20323795]
[1761739325611,0.22340829,113390.0,113370.0,0.24681538]
[1761739325777,0.01511,113380.0,113370.0,0.26208538]
[1761739326200,0.0082259,113380.0,113370.0,0.26208538]
[1761739326615,0.19475829,113390.0,113370.0,0.26208538]
[1761739326826,0.21682184,113390.0,113380.0,0.17639795]
[1761739327045,0.0082259,113390.0,113380.0,0.5972567]
[1761739327258,0.0082259,113390.0,113380.0,0.68707571]
[1761739327493,0.36729499,113400.0,113390.0,0.17638239]
[1761739327691,0.36729499,113400.0,113390.0,0.22927239]
[1761739327817,0.00826097,113400.0,113390.0,0.22927239]
[1761739328221,0.00826097,113400.0,113390.0,0.25578138]
[1761739328427,0.00826097,113400.0,113390.0,0.62624013]
[1761739328632,0.18462781,113400.0,113390.0,0.22927239]
[1761739328846,0.20084781,113400.0,113390.0,0.20492239]
[1761739329058,0.20384684,113400.0,113390.0,0.20492239]
[1761739329296,0.20384684,113400.0,113390.0,0.17638239]
[1761739329491,0.01126,113400.0,113390.0,0.22927239]
[1761739329931,0.01126,113400.0,113390.0,0.59973114]
[1761739330896,0.01126,113400.0,113390.0,0.22927239]
[1761739331246,0.01252904,113400.0,113390.0,0.22927239]
[1761739331429,0.18889588,113400.0,113390.0,0.22927239]
[1761739331829,0.01252904,113400.0,113390.0,0.22927239]
[1761739333668,0.00426904,113400.0,113390.0,0.22927239]
[1761739333906,0.00426904,113400.0,113390.0,0.59973114]
[1761739334107,0.00426904,113400.0,113390.0,0.68751995]
[1761739334720,0.00426904,113400.0,113390.0,0.59973114]
[1761739335710,0.00426904,113400.0,113390.0,0.22927239]
[1761739337847,0.19664588,113400.0,113390.0,0.20492239]
[1761739340337,0.19664588,113400.0,113390.0,0.17638239]
[1761739340543,0.21418588,113400.0,113390.0,0.17638239]
[1761739344184,0.19664588,113400.0,113390.0,0.17638239]
[1761739345196,0.19664588,113400.0,113390.0,0.19226239]
[1761739348134,0.19664588,113400.0,113380.0,0.6730905]
[1761739348135,0.21418588,113400.0,113380.0,0.21312795]
[1761739348350,0.01601,113390.0,113380.0,0.20421795]
[1761739348560,0.02321762,113390.0,113380.0,0.57436149]
[1761739348673,0.22161246,113390.0,113380.0,0.22900795]
[1761739349303,0.22161246,113390.0,113380.0,0.01194]
[1761739349517,0.23915246,113390.0,113370.0,0.59219197]
[1761739349716,0.24009484,113390.0,113380.0,0.17639795]
[1761739349966,0.24009484,113390.0,113370.0,0.22204843]
[1761739350185,0.22255484,113390.0,113370.0,0.59219197]
[1761739350609,0.22055484,113390.0,113370.0,0.59219197]
[1761739351011,0.22055484,113390.0,113380.0,0.17639795]
[1761739351189,0.19854239,113390.0,113380.0,0.17639795]
[1761739351364,0.19854239,113390.0,113380.0,0.19227795]
[1761739351771,0.18253239,113390.0,113380.0,0.22883795]
[1761739352794,0.18453239,113390.0,113380.0,0.59898149]
[1761739352965,0.18253239,113390.0,113380.0,0.59898149]
[1761739353386,0.18453239,113390.0,113380.0,0.59898149]
[1761739353586,0.18453239,113390.0,113380.0,0.22883795]
[1761739353790,0.20054239,113390.0,113380.0,0.02765]
[1761739354093,0.20054239,113390.0,113370.0,0.59219197]
[1761739354694,0.21808239,113390.0,113370.0,0.59219197]
[1761739355055,0.17639795,113380.0,113370.0,0.59219197]
[1761739355246,0.17724412,113380.0,113370.0,0.60807197]
[1761739356078,0.00084617,113380.0,113370.0,0.60807197]
[1761739356531,0.00084617,113380.0,113370.0,0.60907197]
[1761739357917,0.00084617,113380.0,113370.0,1.15885353]
[1761739358539,0.00084617,113380.0,113370.0,1.19503581]
[1761739358741,0.34460983,113410.0,113400.0,0.17636684]
[1761739358948,0.18203574,113420.0,113410.0,0.17635129]
[1761739359146,0.53030433,113420.0,113410.0,0.59832483]
[1761739359297,0.54935571,113420.0,113410.0,0.68814384]
[1761739359874,0.54935571,113420.0,113410.0,0.22818129]
[1761739360369,0.55235571,113420.0,113410.0,0.22818129]
[1761739360816,0.55235571,113420.0,113410.0,0.02817]
[1761739360817,0.56802571,113420.0,113410.0,0.02817]
[1761739361062,0.58641571,113420.0,113400.0,0.21142684]
[1761739361281,0.007,113410.0,113400.0,0.21157171]
[1761739361725,0.007,113410.0,113400.0,0.22786171]
[1761739362891,0.54108712,113420.0,113410.0,0.17635129]
[1761739363117,0.54935139,113420.0,113410.0,0.22818129]
[1761739363328,0.56802139,113420.0,113410.0,0.22818129]
[1761739363731,0.56502139,113420.0,113410.0,0.22818129]
[1761739363943,0.54935139,113420.0,113410.0,0.22818129]
[1761739364578,0.55019712,113420.0,113410.0,0.22818129]
[1761739364785,0.56886712,113420.0,113410.0,0.22818129]
[1761739365002,0.56886712,113420.0,113410.0,0.02817]
[1761739365161,0.54981574,113420.0,113410.0,0.02817]
[1761739365795,0.54981574,113420.0,113410.0,0.20452129]
[1761739366365,0.54981574,113420.0,113410.0,0.19436129]
[1761739367740,0.54981574,113420.0,113410.0,0.19436129]
[1761739369286,0.54981574,113420.0,113410.0,0.01801]
[1761739370100,0.53414574,113420.0,113410.0,0.04167]
[1761739370306,0.52588147,113420.0,113410.0,0.21802129]
[1761739370509,0.54155147,113420.0,113410.0,0.21802129]
[1761739370710,0.54155147,113420.0,113410.0,0.04167]
[1761739371322,0.54155147,113420.0,113410.0,0.01801]
[1761739371531,0.56605147,113420.0,113410.0,0.01188]
[1761739371755,0.56605147,113420.0,113410.0,0.18823129]
[1761739371960,0.56605147,113420.0,113410.0,0.17635129]
[1761739373068,0.54155147,113420.0,113410.0,0.19264129]
[1761739373640,0.52042378,113420.0,113410.0,0.19264129]
[1761739374461,0.52042378,113420.0,113410.0,0.22818129]
[1761739374874,0.50475378,113420.0,113410.0,0.22818129]
[1761739375109,0.52042378,113420.0,113410.0,0.22818129]
[1761739375469,0.50475378,113420.0,113410.0,0.22818129]
[1761739376630,0.50472966,113420.0,113410.0,0.22818129]
[1761739381402,0.51298936,113420.0,113410.0,0.22818129]
[1761739381600,0.50472966,113420.0,113410.0,0.59832483]
[1761739383532,0.50172966,113420.0,113410.0,0.59832483]
[1761739383911,0.50372966,113420.0,113410.0,0.59832483]
[1761739384372,0.50372966,113420.0,113410.0,0.22818129]
[1761739384811,0.51939966,113420.0,113410.0,0.22818129]
[1761739385234,0.32739392,113420.0,113410.0,0.22818129]
[1761739385853,0.50372966,113420.0,113410.0,0.59832483]
[1761739386103,0.50372966,113420.0,113410.0,0.22818129]
[1761739386304,0.51939966,113420.0,113410.0,0.22818129]
[1761739386976,0.51939966,113420.0,113410.0,0.20452129]
[1761739387306,0.52767178,113420.0,113410.0,0.20452129]
[1761739388186,0.17635129,113410.0,113400.0,0.00014487]
[1761739388409,0.85931574,113410.0,113400.0,0.00014487]
[1761739388581,0.87901509,113410.0,113400.0,0.00014487]
[1761739389003,0.90279921,113410.0,113400.0,0.00014487]
[1761739389207,0.87901509,113410.0,113400.0,0.00014487]
[1761739389443,0.87901509,113410.0,113400.0,0.00114487]
[1761739389698,0.90552553,113410.0,113400.0,0.00114487]
[1761739389924,0.90552553,113410.0,113400.0,0.00014487]
[1761739390078,0.70552553,113410.0,113400.0,0.00014487]
[1761739390512,0.68201509,113410.0,113400.0,0.00014487]
[1761739391495,0.59219608,113410.0,113400.0,0.00014487]
[1761739392839,0.56934608,113410.0,113400.0,0.01533487]
[1761739393737,0.56934608,113410.0,113400.0,0.00014487]
[1761739393955,0.59219608,113410.0,113400.0,0.00014487]
[1761739401283,0.59218195,113410.0,113400.0,0.00014487]
[1761739403535,0.79218195,113410.0,113400.0,0.00014487]
[1761739404506,2.79218195,113410.0,113400.0,0.00014487]
[1761739407194,2.88200096,113410.0,113400.0,0.00014487]
[1761739415330,2.90578508,113410.0,113400.0,0.00014487]
[1761739416172,2.90570181,113410.0,113400.0,0.00014487]
[1761739420492,3.35290181,113410.0,113400.0,0.00014487]
[1761739420710,3.44458037,113410.0,113400.0,0.00014487]
[1761739420942,3.4810964,113410.0,113400.0,0.00014487]
[1761739421804,3.4780964,113410.0,113400.0,0.00014487]
[1761739422261,3.4830964,113410.0,113400.0,0.00014487]
[1761739423346,0.17641351,113370.0,113360.0,0.00079412]
[1761739423582,0.19910351,113370.0,113360.0,0.00079412]
[1761739423795,0.22195351,113370.0,113360.0,0.00079412]
[1761739424970,0.22195351,113370.0,113360.0,0.00379412]
[1761739425455,0.22195351,113370.0,113360.0,0.00479412]
[1761739425974,0.31177252,113370.0,113360.0,0.00479412]
[1761739426171,0.31177252,113370.0,113360.0,0.00179412]
[1761739426386,0.31177252,113370.0,113360.0,0.00079412]
[1761739426771,0.65177252,113370.0,113360.0,0.00079412]
[1761739426970,0.71971046,113370.0,113360.0,0.00079412]
[1761739427174,0.65177252,113370.0,113360.0,0.00079412]
[1761739427977,0.65638372,113370.0,113360.0,0.00079412]
[1761739430890,2.87540256,113370.0,113360.0,0.00079412]
[1761739432433,2.88365398,113370.0,113360.0,0.00079412]
[1761739432936,2.88565398,113370.0,113360.0,0.00079412]
[1761739434057,2.88565267,113370.0,113360.0,0.00079412]
[1761739434496,2.68565267,113370.0,113360.0,0.00079412]
[1761739434677,0.63553372,113370.0,113360.0,0.00079412]
[1761739435166,0.54571471,113370.0,113360.0,0.01627412]
[1761739435355,0.54571471,113370.0,113360.0,0.05167412]
[1761739436194,0.54371471,113370.0,113360.0,0.05167412]
[1761739436821,0.54371471,113370.0,113360.0,0.02811412]
[1761739440058,0.54371471,113370.0,113360.0,0.20454319]
[1761739441076,0.54371471,113370.0,113360.0,0.02811412]
[1761739441474,0.56656471,113370.0,113360.0,0.00079412]
[1761739441723,0.76656471,113370.0,113360.0,0.00079412]
[1761739445688,0.85638372,113370.0,113360.0,0.00079412]
[1761739445888,0.87540044,113370.0,113360.0,0.00079412]
[1761739447261,0.88565743,113370.0,113360.0,0.00079412]
[1761739449590,0.88365743,113370.0,113360.0,0.00079412]
[1761739450063,0.88865743,113370.0,113360.0,0.00079412]
[1761739450611,0.88040044,113370.0,113360.0,0.00079412]
[1761739451426,0.88140044,113370.0,113360.0,0.00079412]
[1761739452536,0.68140044,113370.0,113360.0,0.00079412]
[1761739453776,2.90521644,113370.0,113360.0,0.00079412]
[1761739453982,2.91348921,113370.0,113360.0,0.00079412]
[1761739457266,2.69063921,113370.0,113360.0,0.01691412]
[1761739457473,2.69063921,113370.0,113360.0,0.01191412]
[1761739457619,0.51642907,113360.0,113350.0,0.21237404]
[1761739457814,0.53544579,113360.0,113350.0,0.21245929]
[1761739458030,0.53544579,113360.0,113350.0,0.22857929]
[1761739458436,0.53544579,113360.0,113350.0,0.22879089]
[1761739458656,0.21158253,113370.0,113350.0,0.22879089]
[1761739458860,0.55038128,113370.0,113360.0,0.01612]
[1761739459695,0.54538128,113370.0,113360.0,0.01612]
[1761739459920,0.54538128,113370.0,113360.0,0.01412]
[1761739460723,0.54938128,113370.0,113360.0,0.01412]
[1761739461177,0.54938128,113370.0,113360.0,0.02585]
[1761739461821,0.55038128,113370.0,113360.0,0.02585]
[1761739462253,0.55038128,113370.0,113360.0,0.05005]
[1761739462450,0.55038128,113370.0,113360.0,0.02585]
[1761739463070,0.54948428,113370.0,113360.0,0.02585]
[1761739464493,0.54948428,113370.0,113360.0,0.22647907]
[1761739464669,0.54948428,113370.0,113360.0,0.05005]
[1761739465319,0.54120953,113370.0,113360.0,0.05005]
[1761739465943,0.17642907,113360.0,113350.0,0.23918815]
[1761739466151,0.19176907,113360.0,113350.0,0.25530815]
[1761739467526,0.19276907,113360.0,113350.0,0.25530815]
[1761739467942,0.20110907,113360.0,113350.0,0.25530815]
[1761739468719,0.18576907,113360.0,113350.0,0.25530815]
[1761739470078,0.20110907,113360.0,113350.0,0.25530815]
[1761739470779,0.02468,113360.0,113350.0,0.25530815]
[1761739470995,0.00934,113360.0,113350.0,0.25530815]
[1761739471427,0.001,113360.0,113350.0,0.62565475]
[1761739472503,0.001,113360.0,113350.0,1.17563937]
[1761739472723,0.001,113360.0,113350.0,0.80529277]
[1761739473596,0.18601189,113380.0,113370.0,0.17641351]
[1761739473748,0.18601189,113380.0,113370.0,0.22190486]
[1761739473965,0.18601189,113380.0,113370.0,0.22746351]
[1761739476976,0.18701189,113380.0,113370.0,0.22746351]
[1761739478682,0.21323189,113380.0,113370.0,0.20426351]
[1761739479107,0.21323189,113380.0,113370.0,0.22853351]
[1761739479310,0.19717189,113380.0,113370.0,0.22853351]
[1761739480968,0.18701189,113380.0,113370.0,0.22853351]
[1761739483632,0.21323189,113380.0,113370.0,0.20426351]
[1761739484580,0.21323189,113380.0,113370.0,0.05212]
[1761739484777,0.21323189,113380.0,113370.0,0.02785]
[1761739485891,0.21323189,113380.0,113370.0,0.20426351]
[1761739487812,0.21323189,113380.0,113370.0,0.02785]
[1761739488050,0.21323189,113380.0,113370.0,0.20426351]
[1761739488457,0.21323189,113380.0,113370.0,0.02785]
[1761739488662,0.21323189,113380.0,113370.0,0.18814351]
[1761739488663,0.23797189,113380.0,113370.0,0.18814351]
[1761739488843,0.21323189,113380.0,113370.0,0.18814351]
[1761739489085,0.21323189,113380.0,113370.0,0.20398351]
[1761739489289,0.21323189,113380.0,113370.0,0.22825351]
[1761739493170,0.19717189,113380.0,113370.0,0.22825351]
[1761739496945,0.21323189,113380.0,113370.0,0.22825351]
[1761739498130,0.19717189,113380.0,113370.0,0.22825351]
[1761739500437,0.21323189,113380.0,113370.0,0.02757]
[1761739500688,0.21323189,113380.0,113370.0,0.20398351]
[1761739500879,0.0271051,113380.0,113370.0,0.20398351]
[1761739501086,0.0110451,113380.0,113370.0,0.22825351]
[1761739501332,0.17728305,113380.0,113370.0,0.22825351]
[1761739502723,0.0008851,113380.0,113370.0,0.7697451]
[1761739502924,0.0008851,113380.0,113370.0,1.1400917]
[1761739503764,0.0008851,113380.0,113370.0,1.16659973]
[1761739505203,0.00827262,113410.0,113400.0,0.16824684]
[1761739505427,0.17635129,113410.0,113400.0,0.19548684]
[1761739505852,0.55903721,113420.0,113400.0,0.21975684]
[1761739506080,0.17698565,113410.0,113400.0,0.21975684]
[1761739506482,0.17707077,113410.0,113400.0,0.21975684]
[1761739507098,0.00171948,113410.0,113400.0,0.67054283]
[1761739507300,0.00171948,113410.0,113400.0,0.30019623]
[1761739508381,0.17807077,113410.0,113400.0,0.21975684]
[1761739510174,0.17807077,113410.0,113400.0,0.22787684]
[1761739510395,0.20088077,113410.0,113400.0,0.20360684]
[1761739510627,0.17636684,113400.0,113390.0,0.20289042]
[1761739510862,0.22379684,113400.0,113390.0,0.17638239]
[1761739511471,0.02481,113400.0,113390.0,0.20296239]
[1761739511667,0.00834,113400.0,113390.0,0.22741239]
[1761739512698,0.00834,113400.0,113390.0,0.22841239]
[1761739513126,0.20537641,113410.0,113400.0,0.17636684]
[1761739513342,0.20537641,113410.0,113390.0,0.22841239]
[1761739513549,0.20537641,113410.0,113400.0,0.17636684]
[1761739514029,0.22066641,113410.0,113390.0,0.22597216]
[1761739514241,0.22066641,113410.0,113390.0,0.21311239]
[1761739514479,0.17636684,113400.0,113390.0,0.21311239]
[1761739514698,0.17636684,113400.0,113390.0,0.21211239]
[1761739514916,0.17636684,113400.0,113390.0,0.22741239]
[1761739515132,0.22259684,113400.0,113390.0,0.17638239]
[1761739515566,0.19999684,113400.0,113390.0,0.19168239]
[1761739516254,0.20041978,113400.0,113390.0,0.19168239]
[1761739517106,0.20041978,113400.0,113380.0,0.22104093]
[1761739517307,0.26091646,113400.0,113380.0,0.31085994]
[1761739517538,0.24562646,113400.0,113390.0,0.001]
[1761739517959,0.26091646,113400.0,113390.0,0.001]
[1761739518294,0.17638239,113390.0,113380.0,0.18779364]
[1761739518499,0.19588239,113390.0,113380.0,0.20309364]
[1761739518910,0.19588239,113390.0,113380.0,0.22754364]
[1761739519498,0.19588239,113390.0,113380.0,0.20309364]
[1761739520115,0.19588239,113390.0,113380.0,0.20409364]
[1761739520348,0.19588239,113390.0,113380.0,0.20309364]
[1761739520551,0.0195,113390.0,113380.0,0.22754364]
[1761739520772,0.0195,113390.0,113380.0,0.22954364]
[1761739520948,0.03008074,113390.0,113380.0,0.22954364]
[1761739521151,0.20646313,113390.0,113380.0,0.22954364]
[1761739521743,0.20646313,113390.0,113380.0,0.20509364]
[1761739521946,0.0195,113390.0,113380.0,0.20509364]
[1761739522174,0.0195,113390.0,113380.0,0.22954364]
[1761739522598,0.00442149,113390.0,113380.0,0.22954364]
[1761739525178,0.00021149,113390.0,113380.0,0.22954364]
[1761739527214,0.17659388,113390.0,113380.0,0.22954364]
[1761739527639,0.00021149,113390.0,113380.0,0.22954364]
[1761739530102,0.00021149,113390.0,113380.0,0.30921168]
[1761739531382,0.00021149,113390.0,113380.0,0.22954364]
[1761739532558,0.19609388,113390.0,113380.0,0.22954364]
[1761739533815,0.01971149,113390.0,113380.0,0.22954364]
[1761739534231,0.00442149,113390.0,113380.0,0.22954364]
[1761739534473,0.01971149,113390.0,113380.0,0.22954364]
[1761739534941,0.00442149,113390.0,113380.0,0.22954364]
[1761739536384,0.00021149,113390.0,113380.0,0.22954364]
[1761739541731,0.19692388,113390.0,113380.0,0.20509795]
[1761739541907,0.19692388,113390.0,113380.0,0.18979795]
[1761739542106,0.19692388,113390.0,113380.0,0.20484795]
[1761739542506,0.19692388,113390.0,113380.0,0.22870795]
[1761739543063,0.19692388,113390.0,113380.0,0.20484795]
[1761739544146,0.19692388,113390.0,113380.0,0.22870795]
[1761739548720,0.18080388,113390.0,113380.0,0.22870795]
[1761739549883,0.18080388,113390.0,113380.0,0.22870795]
[1761739551734,0.19692388,113390.0,113380.0,0.20484795]
[1761739551934,0.19692388,113390.0,113380.0,0.0134]
[1761739552180,0.19692388,113390.0,113380.0,0.002]
[1761739552181,0.22973388,113390.0,113380.0,0.002]
[1761739552411,0.24876938,113390.0,113380.0,0.002]
[1761739553153,0.17639795,113380.0,113370.0,0.17641347]
[1761739553360,0.20267795,113380.0,113370.0,0.19146347]
[1761739553768,0.17639795,113380.0,113370.0,0.22758347]
[1761739554230,0.20267795,113380.0,113370.0,0.22758347]
[1761739554448,0.18655795,113380.0,113370.0,0.22758347]
[1761739557802,0.18655795,113380.0,113370.0,0.22958347]
[1761739558388,0.20267795,113380.0,113370.0,0.22958347]
[1761739558630,0.18655795,113380.0,113370.0,0.22958347]
[1761739561235,0.17639795,113380.0,113370.0,0.22958347]
[1761739564181,0.17639795,113380.0,113370.0,0.05317]
[1761739564400,0.19251795,113380.0,113370.0,0.02931]
[1761739564623,0.25013004,113380.0,113370.0,0.002]
[1761739565677,0.21140795,113380.0,113370.0,0.002]
[1761739566096,0.17641351,113370.0,113360.0,0.18948232]
[1761739566323,0.19887351,113370.0,113360.0,0.20453232]
[1761739567374,0.19887351,113370.0,113360.0,0.22740232]
[1761739567834,0.19887351,113370.0,113360.0,0.22940232]
[1761739568111,0.19887351,113370.0,113360.0,0.20653232]
[1761739568341,0.19887351,113370.0,113360.0,0.03010412]
[1761739568540,0.19887351,113370.0,113360.0,0.20653319]
[1761739569498,0.19887351,113370.0,113360.0,0.22940319]
[1761739570265,0.19887351,113370.0,113360.0,0.20653319]
[1761739570704,0.23828966,113370.0,113360.0,0.20653319]
[1761739571148,0.19887351,113370.0,113360.0,0.20653319]
[1761739571929,0.19887351,113370.0,113360.0,0.03010412]
[1761739572866,0.19887351,113370.0,113360.0,0.20653319]
[1761739573030,0.19887351,113370.0,113360.0,0.02810412]
[1761739573819,0.19887351,113370.0,113360.0,0.20453319]
[1761739574249,0.19887351,113370.0,113360.0,0.02810412]
[1761739574801,0.19887351,113370.0,113360.0,0.20453319]
[1761739575862,0.19887351,113370.0,113360.0,0.22715319]
[1761739576747,0.18275351,113370.0,113360.0,0.22715319]
[1761739576955,0.17641351,113370.0,113360.0,0.22715319]
[1761739577423,0.17641351,113370.0,113360.0,0.30919187]
[1761739577671,0.17641351,113370.0,113360.0,0.22715319]
[1761739594694,0.19224351,113370.0,113360.0,0.22715319]
[1761739595103,0.17641351,113370.0,113360.0,0.05072412]
[1761739595526,0.17641351,113370.0,113360.0,0.22715319]
[1761739600771,0.17641351,113370.0,113360.0,0.05072412]
[1761739600980,0.17641351,113370.0,113360.0,0.22715319]
[1761739610429,0.19189351,113370.0,113360.0,0.22715319]
[1761739610873,0.17641351,113370.0,113360.0,0.22715319]
[1761739614633,0.20178897,113380.0,113360.0,0.59744071]
[1761739614887,0.20178897,113380.0,113370.0,0.01614]
[1761739614888,0.20649923,113380.0,113370.0,0.01614]
[1761739615086,0.22555025,113380.0,113370.0,0.02862]
[1761739615304,0.22555025,113380.0,113370.0,0.05316]
[1761739616397,0.22655025,113380.0,113370.0,0.05316]
[1761739617379,0.22655025,113380.0,113370.0,0.02862]
[1761739621635,0.22655025,113380.0,113370.0,0.22957351]
[1761739621866,0.02005102,113380.0,113370.0,0.67879545]
[1761739622089,0.001,113380.0,113370.0,0.67879545]
[1761739622757,0.001,113380.0,113370.0,0.70530729]
[1761739622965,0.17939219,113390.0,113370.0,0.70530729]
[1761739622966,0.00461015,113390.0,113380.0,0.17639795]
[1761739623168,0.18099254,113390.0,113380.0,0.61748526]
[1761739623435,0.18099254,113390.0,113380.0,0.61895842]
[1761739623614,0.18099254,113390.0,113380.0,0.59984547]
[1761739625382,0.00461015,113390.0,113380.0,0.59984547]
[1761739625593,0.00461015,113390.0,113380.0,0.97013299]
[1761739625804,0.00461015,113390.0,113380.0,1.059952]
[1761739626033,0.00461015,113390.0,113380.0,1.14977101]
[1761739626664,0.00461015,113390.0,113380.0,1.17628009]
[1761739627082,0.00461015,113390.0,113380.0,1.17828009]
[1761739627299,0.52937885,113410.0,113400.0,0.17636684]
[1761739627499,0.37207781,113410.0,113400.0,0.20396684]
[1761739627699,0.52108843,113410.0,113400.0,0.22720684]
[1761739630201,0.52208843,113410.0,113400.0,0.22720684]
[1761739631025,0.52208843,113410.0,113400.0,0.05084]
[1761739631919,0.53748843,113410.0,113400.0,0.0276]
[1761739632178,0.17636684,113400.0,113390.0,0.21268831]
[1761739632580,0.17636684,113400.0,113390.0,0.22866831]
[1761739634155,0.52108843,113410.0,113390.0,0.22866831]
[1761739634359,0.52108843,113410.0,113400.0,0.0523]
[1761739634599,0.52108843,113410.0,113400.0,0.22866684]
[1761739636287,0.00473714,113410.0,113400.0,0.22866684]
[1761739636504,0.17647898,113410.0,113400.0,0.22866684]
[1761739637818,0.17747898,113410.0,113400.0,0.22866684]
[1761739638223,0.17647898,113410.0,113400.0,0.22866684]
[1761739639099,0.17690186,113410.0,113400.0,0.22866684]
[1761739644496,0.00055057,113410.0,113400.0,0.22866684]
[1761739644883,0.00055057,113410.0,113400.0,0.31000882]
[1761739645079,0.00055057,113410.0,113400.0,0.68029634]
[1761739645306,0.00055057,113410.0,113400.0,0.77011535]
[1761739645507,0.00055057,113410.0,113400.0,0.39982783]
[1761739645713,0.00055057,113410.0,113400.0,0.42633194]
[1761739647723,0.00055057,113410.0,113400.0,0.34498996]
[1761739648758,0.21119186,113410.0,113400.0,0.02650411]
[1761739648963,0.21119186,113410.0,113400.0,0.20487095]
[1761739649168,0.19230186,113410.0,113400.0,0.01798]
[1761739649578,0.19230186,113410.0,113400.0,0.19434684]
[1761739649754,0.19230186,113410.0,113400.0,0.17836684]
[1761739649963,0.21119186,113410.0,113400.0,0.17636684]
[1761739650408,0.21219186,113410.0,113400.0,0.17636684]
[1761739652490,0.19330186,113410.0,113400.0,0.17636684]
[1761739652637,0.19330186,113410.0,113400.0,0.19234684]
[1761739652879,0.19330186,113410.0,113400.0,0.20393684]
[1761739653492,0.19330186,113410.0,113400.0,0.22866684]
[1761739653762,0.17790186,113410.0,113400.0,0.27298007]